bitfinex-derivatives/quotes_ETHF0:USTF0_20250224
["timestamp","ask_amount","ask_price","bid_price","bid_amount"]
[1740426993756,0.00567999,2638.9,2638.8,0.7579]
[1740426994260,3.2078,2639.8,2638.7,3.2078]
[1740426994452,3.2078,2639.8,2639.0,3.2078]
[1740426994656,0.7577,2639.5,2639.2,0.75777]
[1740426994857,0.75768,2639.6,2639.3,0.75775]
[1740426995057,3.2078,2639.8,2639.2,0.75777]
[1740426995253,3.2078,2639.8,2639.1,4.4216]
[1740426995560,3.97110999,2639.8,2639.5,0.7577]
[1740426995765,3.21347999,2639.8,2639.3,3.2078]
[1740426996055,0.75769,2639.6,2639.2,0.75779]
[1740426996260,0.75771,2639.5,2639.2,0.75777]
[1740426996461,0.75766,2639.7,2639.4,0.75771]
[1740426996650,3.97109999,2639.8,2639.1,4.4216]
[1740426996856,3.97109999,2639.8,2639.2,0.75779]
[1740426997056,3.21347999,2639.8,2639.1,4.4216]
[1740426997562,3.21347999,2639.8,2639.4,0.75773]
[1740426997754,0.75767,2639.6,2639.4,0.75773]
[1740426998152,3.21347999,2639.8,2639.3,3.2078]
[1740426998354,0.75772,2639.5,2639.3,3.2078]
[1740426999054,0.75772,2639.5,2639.3,6.5968]
[1740426999258,0.75772,2639.5,2639.3,7.35455]
[1740426999865,0.75772,2639.5,2639.3,4.14674]
[1740427000256,0.75766,2639.7,2639.3,3.389]
[1740427000455,3.97110999,2639.8,2639.3,3.389]
[1740427000759,3.21347999,2639.8,2639.4,0.75773]
[1740427000966,0.75766,2639.7,2639.4,0.7577]
[1740427001256,0.75768,2639.6,2639.3,7.35453]
[1740427001562,0.75776,2639.3,2639.2,1.0799]
[1740427001767,0.75781,2639.1,2638.9,3.389]
[1740427001958,5.4052,2639.5,2639.0,0.75783]
[1740427002156,1.1294,2639.7,2639.1,3.2078]
[1740427002358,0.00567999,2639.8,2639.2,3.2078]
[1740427002663,0.00567999,2639.8,2639.5,0.75769]
[1740427002664,0.76330999,2639.8,2639.5,0.75769]
[1740427002865,0.00567999,2639.8,2639.2,3.2078]
[1740427003060,0.75768,2639.6,2639.3,0.75776]
[1740427003363,0.75772,2639.5,2639.2,3.2078]
[1740427003561,0.75771,2639.5,2639.2,3.96557]
[1740427003762,0.75768,2639.6,2639.3,0.75774]
[1740427003963,0.00567999,2639.8,2639.2,3.2078]
[1740427004165,0.76329999,2639.8,2639.3,1.098]
[1740427004362,0.00567999,2639.8,2639.6,0.75767]
[1740427004562,0.76329999,2639.8,2639.5,0.75768]
[1740427004758,0.00567999,2639.8,2639.3,4.486]
[1740427004966,0.00567999,2639.8,2639.7,0.75764]
[1740427005269,0.00567999,2639.8,2639.7,3.388]
[1740427005660,0.00567999,2639.8,2639.7,4.14564]
[1740427007254,1.81476,2640.7,2639.9,1.89393]
[1740427007455,2.1289,2641.0,2640.2,1.89375]
[1740427007659,2.1289,2641.0,2640.7,0.75735]
[1740427007865,1.0574,2641.3,2640.7,3.388]
[1740427008063,0.75733,2640.8,2640.7,3.388]
[1740427008360,0.75728,2641.0,2640.7,4.14535]
[1740427008565,0.00567999,2641.0,2640.7,3.388]
[1740427008962,0.00567999,2641.0,2640.9,0.7573]
[1740427010570,0.00567999,2641.0,2640.9,1.8979]
[1740427010869,0.00567999,2641.0,2640.9,1.1406]
[1740427011366,0.76294999,2641.0,2640.9,1.1406]
[1740427011868,0.75735,2640.8,2640.5,4.26727999]
[1740427012065,0.75738,2640.6,2640.5,7.65427999]
[1740427012265,0.75738,2640.6,2640.5,3.21347999]
[1740427012461,0.75738,2640.6,2640.5,0.00567999]
[1740427013666,1.0409,2640.9,2640.5,0.00567999]
[1740427013855,3.21347999,2641.0,2640.5,0.00567999]
[1740427013856,0.00567999,2641.0,2640.5,0.00567999]
[1740427014057,0.75738,2640.6,2640.5,0.00567999]
[1740427016866,0.75753,2640.1,2640.0,3.2078]
[1740427017265,0.75753,2640.1,2639.4,4.276]
[1740427017566,0.75762,2639.8,2639.7,0.75763]
[1740427017775,0.75763,2639.8,2639.7,0.75763]
[1740427018366,0.75767,2639.6,2639.5,3.39267999]
[1740427018961,0.75767,2639.6,2639.5,0.00567999]
[1740427020978,1.89426,2639.5,2638.5,3.2078]
[1740427021170,0.75791,2638.8,2638.7,0.75791]
[1740427021369,1.89447,2639.2,2638.6,4.5254]
[1740427021570,1.89454,2639.1,2638.5,3.2078]
[1740427021768,0.75796,2638.6,2638.5,6.5938]
[1740427021968,1.89461,2639.0,2638.5,3.2078]
[1740427022172,0.75796,2638.6,2638.5,3.2078]
[1740427022369,0.00567999,2638.8,2638.5,3.2078]
[1740427023281,0.75796,2638.6,2638.5,3.96578]
[1740427024086,0.75796,2638.6,2638.5,3.2078]
[1740427024283,0.00567999,2638.8,2638.3,21.01267]
[1740427024284,0.75802,2638.4,2638.3,21.01267]
[1740427024586,0.00567999,2638.8,2638.3,21.01267]
[1740427024782,0.00567999,2638.8,2638.7,0.75793]
[1740427025088,0.00567999,2638.8,2638.3,24.39967]
[1740427025089,0.00567999,2638.8,2638.3,29.50257]
[1740427025283,0.00567999,2638.8,2638.7,0.75793]
[1740427025788,0.00567999,2638.8,2638.7,4.14493]
[1740427026977,3.2078,2639.6,2638.7,5.19283]
[1740427027182,3.2078,2639.6,2638.9,5.10248]
[1740427027589,1.0177,2639.9,2639.1,1.89454]
[1740427027590,3.2078,2639.9,2639.1,1.89454]
[1740427027788,3.2078,2639.9,2639.2,6.5948]
[1740427028092,3.2078,2639.9,2639.2,7.6221]
[1740427028295,0.00567999,2639.8,2639.2,4.2351]
[1740427028488,0.00567999,2639.8,2639.3,3.387]
[1740427028686,0.00567999,2639.8,2639.6,0.75765]
[1740427028886,0.75766,2639.7,2639.4,1.80562]
[1740427029188,0.00567999,2639.8,2639.4,1.0479]
[1740427029384,0.00567999,2639.8,2639.7,0.75764]
[1740427029585,0.00567999,2639.8,2639.7,4.14464]
[1740427029789,0.00567999,2639.8,2639.7,3.387]
[1740427029988,0.00567999,2639.8,2639.7,4.14464]
[1740427030492,3.2078,2640.3,2640.2,0.7575]
[1740427030693,3.2078,2640.7,2640.2,3.386]
[1740427030895,0.75747,2640.3,2640.2,3.386]
[1740427031990,0.00567999,2640.5,2640.2,3.386]
[1740427032395,0.75747,2640.3,2640.2,3.386]
[1740427032790,0.75753,2640.1,2640.0,0.00567999]
[1740427033297,3.96533,2640.1,2640.0,0.00567999]
[1740427033991,1.89927999,2640.5,2640.0,3.39167999]
[1740427033992,3.21347999,2640.5,2640.0,3.39167999]
[1740427034196,1.89361,2640.4,2640.0,3.39167999]
[1740427034392,0.75753,2640.1,2640.0,3.39167999]
[1740427035100,3.2078,2640.2,2640.0,3.39167999]
[1740427035396,0.00567999,2640.5,2640.4,0.75744]
[1740427035602,0.76308999,2640.5,2640.4,0.75744]
[1740427036003,0.75748,2640.3,2640.2,0.75747]
[1740427036301,0.7575,2640.3,2640.2,0.75748]
[1740427036491,0.75753,2640.1,2640.0,0.00567999]
[1740427036689,0.75753,2640.1,2640.0,3.39167999]
[1740427037490,0.75751,2640.2,2640.0,3.39167999]
[1740427037702,0.75748,2640.3,2640.2,0.75749]
[1740427037901,3.2078,2640.4,2640.1,3.386]
[1740427038099,0.7575,2640.2,2640.1,3.386]
[1740427038404,0.7575,2640.2,2640.1,4.14353]
[1740427038604,0.7575,2640.2,2640.1,3.386]
[1740427038900,0.7575,2640.2,2640.1,4.14353]
[1740427039101,0.7575,2640.2,2640.1,3.386]
[1740427039696,0.7575,2640.2,2640.1,4.14353]
[1740427039893,0.7575,2640.3,2640.2,0.75748]
[1740427040094,3.2078,2640.4,2640.1,3.386]
[1740427040295,0.00567999,2640.5,2640.1,3.386]
[1740427040493,0.7575,2640.3,2640.2,0.75748]
[1740427040894,0.7575,2640.3,2640.2,0.7575]
[1740427041095,0.00567999,2640.5,2640.1,3.386]
[1740427042991,3.2078,2640.4,2640.0,0.00567999]
[1740427043704,1.0398,2640.3,2640.0,0.00567999]
[1740427044506,6.1648,2640.4,2640.0,0.00567999]
[1740427046305,3.2078,2640.1,2640.0,0.00567999]
[1740427046497,3.5869,2640.1,2640.0,0.00567999]
[1740427046804,3.2078,2640.1,2640.0,0.00567999]
[1740427047101,3.96533,2640.1,2640.0,0.00567999]
[1740427047904,1.0297,2640.3,2640.0,3.38967999]
[1740427048097,6.1648,2640.4,2640.0,3.38967999]
[1740427048405,0.75753,2640.1,2640.0,3.38967999]
[1740427048606,0.75753,2640.1,2640.0,3.38532861]
[1740427048904,8.05842,2640.4,2640.0,3.38532861]
[1740427049210,0.75753,2640.1,2640.0,4.14287861]
[1740427049500,6.1648,2640.4,2640.2,0.75747]
[1740427049709,6.1648,2640.4,2640.0,3.38532861]
[1740427049900,0.75748,2640.3,2640.2,0.75748]
[1740427050101,2.957,2640.4,2640.3,0.75747]
[1740427050409,0.00567999,2640.5,2640.4,0.75744]
[1740427050605,0.00567999,2640.5,2640.4,4.14144]
[1740427050803,0.00567999,2640.5,2640.4,3.384]
[1740427051109,0.76308999,2640.5,2640.4,3.384]
[1740427051408,0.75747,2640.3,2640.2,4.4675]
[1740427051805,0.75753,2640.1,2640.0,0.00132861]
[1740427052007,3.2078,2640.4,2640.0,0.00132861]
[1740427052201,0.76309999,2640.5,2640.0,1.89520861]
[1740427052410,0.76310999,2640.5,2640.3,0.75745]
[1740427052610,0.00567999,2640.5,2640.4,0.75744]
[1740427053102,0.00567999,2640.5,2640.1,5.10161]
[1740427053103,0.00567999,2640.5,2640.3,3.384]
[1740427053500,0.00567999,2640.5,2640.4,0.75744]
[1740427054614,0.00567999,2640.5,2640.4,3.96524]
[1740427055409,15.89870338,2641.1,2640.5,1.89349]
[1740427055604,16.65595338,2641.1,2640.9,0.75729]
[1740427055805,16.65595338,2641.1,2640.9,4.14129]
[1740427056510,15.89870338,2641.1,2640.9,3.384]
[1740427056806,0.00567999,2641.3,2640.9,3.384]
[1740427057013,0.76285999,2641.3,2641.1,0.75722]
[1740427057406,0.00567999,2641.3,2641.0,1.0339]
[1740427057708,0.00567999,2641.3,2641.2,3.96501]
[1740427057910,7.63288213,2641.4,2641.3,0.75718]
[1740427058109,7.63288213,2641.4,2641.3,4.14018]
[1740427058511,7.63288213,2641.4,2641.3,37.84018]
[1740427059206,0.75714,2641.5,2641.3,37.083]
[1740427059410,0.75718,2641.3,2641.2,3.2078]
[1740427060313,3.21347999,2641.6,2641.2,3.2078]
[1740427060507,0.75718,2641.3,2641.2,3.2078]
[1740427060906,3.21347999,2641.6,2641.2,3.2078]
[1740427061112,0.75714,2641.5,2641.3,0.75718]
[1740427061307,3.21347999,2641.6,2641.2,3.2078]
[1740427061508,0.75714,2641.5,2641.2,3.2078]
[1740427061719,0.00567999,2641.6,2641.4,0.75713]
[1740427061919,0.00567999,2641.6,2641.5,4.13913]
[1740427062122,0.00567999,2641.6,2641.5,7.34693]
[1740427065112,0.76277999,2641.6,2641.5,6.5898]
[1740427065317,0.76277999,2641.6,2641.5,3.382]
[1740427065517,0.75715,2641.5,2641.2,3.2078]
[1740427065719,0.00567999,2641.6,2641.3,3.381]
[1740427065922,0.75714,2641.5,2641.3,4.13816]
[1740427066317,0.76278999,2641.6,2641.4,0.75714]
[1740427066816,0.00567999,2641.6,2641.5,3.96493]
[1740427067622,0.00567999,2641.6,2641.5,0.75713]
[1740427067924,0.00567999,2641.6,2641.5,37.66493]
[1740427069025,0.00567999,2641.6,2641.5,3.96493]
[1740427069322,0.00567999,2641.6,2641.5,3.2078]
[1740427075327,0.00567999,2641.6,2641.5,6.5878]
[1740427079214,3.21347999,2641.6,2641.3,3.379]
[1740427079414,1.1021,2641.5,2641.3,3.379]
[1740427079722,1.1021,2641.5,2641.3,6.5868]
[1740427080025,1.1021,2641.5,2641.3,3.379]
[1740427080519,1.1021,2641.5,2641.1,33.7]
[1740427080720,1.1021,2641.5,2641.0,3.2078]
[1740427080925,1.1021,2641.5,2641.2,3.379]
[1740427081126,5.10077,2641.3,2640.8,33.7]
[1740427081321,0.75724,2641.1,2641.0,3.379]
[1740427082326,2.1204,2641.2,2641.0,3.379]
[1740427082525,1.80614,2641.2,2641.1,0.75724]
[1740427082726,1.0489,2641.2,2641.1,0.75724]
[1740427082923,1.0489,2641.2,2641.0,3.379]
[1740427082924,1.1021,2641.5,2641.4,0.75715]
[1740427083131,1.85923,2641.5,2641.4,3.379]
[1740427083528,0.75715,2641.4,2641.3,3.379]
[1740427083730,1.89296,2641.3,2640.8,3.9651]
[1740427083923,0.75729,2641.0,2640.9,3.379]
[1740427084528,1.0797,2641.2,2641.1,0.75724]
[1740427084725,1.0797,2641.2,2640.9,3.379]
[1740427084923,0.75727,2641.0,2640.9,4.13629]
[1740427085130,1.0797,2641.2,2641.1,0.75724]
[1740427086128,1.83692,2641.2,2641.0,0.75725]
[1740427086323,1.0797,2641.2,2641.1,0.75724]
[1740427086529,1.83691,2641.2,2641.0,0.75725]
[1740427087225,1.0797,2641.2,2640.9,3.379]
[1740427087427,1.0797,2641.2,2641.1,0.75724]
[1740427087928,0.75715,2641.4,2641.2,0.75719]
[1740427088126,0.75715,2641.4,2641.3,3.379]
[1740427088322,1.1021,2641.5,2641.4,0.75715]
[1740427088523,0.00567999,2641.6,2641.5,0.75713]
[1740427088723,0.00567999,2641.6,2641.5,3.96493]
[1740427090129,1.89206,2642.6,2641.5,3.96493]
[1740427090130,3.2078,2643.2,2641.5,9.2078]
[1740427090334,18.31198919,2642.9,2642.2,3.2078]
[1740427090632,18.31198919,2642.9,2642.3,3.379]
[1740427090819,0.75687,2642.4,2642.3,37.079]
[1740427091024,0.75686,2642.5,2642.3,37.079]
[1740427091220,0.00567999,2642.6,2642.4,0.75685]
[1740427093134,0.76248999,2642.6,2642.4,0.75685]
[1740427093336,0.00567999,2642.6,2642.4,0.75685]
[1740427093528,0.00567999,2642.6,2642.3,3.379]
[1740427093831,0.7569,2642.3,2642.2,3.2078]
[1740427094023,0.7569,2642.3,2642.2,3.378]
[1740427094222,0.75692,2642.2,2642.1,0.00567999]
[1740427094422,0.75692,2642.2,2642.1,3.38367999]
[1740427094630,0.75692,2642.2,2642.1,0.00567999]
[1740427095029,2.91852,2642.2,2642.1,0.00567999]
[1740427095536,0.75721,2641.2,2641.1,3.378]
[1740427096036,0.75724,2641.1,2641.0,20.992]
[1740427096232,3.2078,2641.3,2640.9,6.5848]
[1740427096435,1.89304,2641.2,2640.5,3.2078]
[1740427096636,0.7573,2640.9,2640.8,0.00567999]
[1740427097427,0.7575,2640.2,2640.1,24.95733]
[1740427097633,0.7575,2640.2,2640.1,28.33433]
[1740427097828,1.0921,2640.6,2640.1,27.5768]
[1740427098041,1.0921,2640.6,2640.1,28.33431]
[1740427098244,1.0921,2640.6,2640.1,27.5768]
[1740427098441,1.0921,2640.6,2640.5,0.75741]
[1740427099039,1.0921,2640.6,2640.1,27.58247999]
[1740427099541,1.0921,2640.6,2640.5,0.75741]
[1740427099743,1.0921,2640.6,2640.1,27.58247999]
[1740427099942,1.0921,2640.6,2640.4,0.75742]
[1740427100152,1.0921,2640.6,2640.1,27.58247999]
[1740427100441,1.0921,2641.1,2640.4,3.2078]
[1740427100630,1.0963,2641.3,2640.7,3.2078]
[1740427100830,1.0963,2641.3,2640.7,3.96515]
[1740427101038,0.75733,2640.8,2640.7,3.2078]
[1740427101237,1.89314,2641.1,2640.5,3.377]
[1740427101541,0.75735,2640.8,2640.5,4.1344]
[1740427101934,0.75736,2640.7,2640.5,3.377]
[1740427102245,1.89315,2641.1,2640.5,3.377]
[1740427102444,0.75734,2640.8,2640.6,0.75738]
[1740427102641,0.75734,2640.8,2640.5,3.377]
[1740427102942,1.89311,2641.1,2640.5,3.377]
[1740427103136,0.75734,2640.8,2640.6,0.75738]
[1740427103336,0.75738,2640.6,2640.5,3.377]
[1740427103536,5.10104,2641.0,2640.5,4.13441]
[1740427103739,0.75737,2640.7,2640.6,0.75738]
[1740427103940,3.2078,2641.0,2640.5,3.377]
[1740427103941,0.75738,2640.6,2640.5,3.377]
[1740427104344,3.2078,2640.7,2640.3,3.2078]
[1740427104644,0.7575,2640.2,2640.1,20.99767999]
[1740427105035,0.7575,2640.2,2640.1,0.00567999]
[1740427105240,0.75764,2639.7,2639.6,3.2078]
[1740427105546,0.75764,2639.7,2639.6,3.96547]
[1740427105734,0.75762,2639.8,2639.7,0.75762]
[1740427106047,3.2078,2640.0,2639.6,3.96547]
[1740427106048,0.75764,2639.7,2639.6,3.96547]
[1740427106240,3.2078,2640.0,2639.6,3.2078]
[1740427106543,0.00567999,2639.9,2639.8,0.7576]
[1740427106943,0.00567999,2639.9,2639.7,0.75763]
[1740427107138,0.75761,2639.8,2639.6,3.2078]
[1740427107334,0.00567999,2639.9,2639.8,0.75761]
[1740427108236,0.00567999,2639.9,2639.8,34.45761]
[1740427108643,1.0819,2640.6,2639.8,39.7]
[1740427108948,1.0435,2641.0,2640.4,3.2078]
[1740427108949,0.75733,2640.8,2640.4,3.2078]
[1740427109139,0.75738,2640.7,2640.5,3.378]
[1740427109450,1.0435,2641.0,2640.6,3.378]
[1740427109637,0.75735,2640.7,2640.6,3.378]
[1740427109833,0.75741,2640.5,2640.4,3.2078]
[1740427110037,1.89354,2640.5,2640.0,3.378]
[1740427110241,0.75753,2640.1,2640.0,3.378]
[1740427110646,2.1685,2640.4,2640.0,3.378]
[1740427110941,0.75753,2640.1,2640.0,3.378]
[1740427111346,2.1685,2640.4,2640.0,3.378]
[1740427111647,0.75747,2640.3,2640.1,0.75751]
[1740427111845,1.0427,2640.4,2640.3,0.75747]
[1740427112147,1.0427,2640.4,2640.0,6.5858]
[1740427112447,0.75742,2640.5,2640.3,0.75747]
[1740427112648,3.2078,2640.6,2640.0,6.5858]
[1740427112835,0.75746,2640.4,2640.2,0.75749]
[1740427113036,3.96519,2640.6,2640.4,0.75743]
[1740427113339,2.1528,2640.8,2640.7,0.75735]
[1740427113539,0.75735,2640.7,2640.6,0.75738]
[1740427113739,0.75735,2640.7,2640.5,0.75739]
[1740427113940,1.027,2640.8,2640.7,0.75735]
[1740427114140,0.00567999,2641.1,2640.6,3.2078]
[1740427114350,0.75734,2640.8,2640.6,0.75737]
[1740427114551,0.75728,2641.0,2640.8,0.75731]
[1740427114751,0.7573,2640.9,2640.7,0.75733]
[1740427114946,0.75732,2640.9,2640.7,0.75733]
[1740427115142,0.75735,2640.7,2640.6,3.2078]
[1740427116049,0.75745,2640.4,2640.2,0.75748]
[1740427116243,0.75737,2640.7,2640.5,0.7574]
[1740427116443,0.75744,2640.4,2640.3,3.377]
[1740427116761,0.75743,2640.5,2640.3,4.13446]
[1740427117052,3.2078,2640.9,2640.3,3.377]
[1740427117246,0.75734,2640.8,2640.6,0.75737]
[1740427117449,1.12407999,2641.1,2640.4,4.3211]
[1740427117645,0.75736,2640.7,2640.5,0.75741]
[1740427117845,0.75736,2640.7,2640.6,0.75738]
[1740427118355,0.75728,2641.0,2640.8,0.7573]
[1740427118550,0.75728,2641.0,2640.7,3.377]
[1740427118752,0.75727,2641.0,2640.7,3.377]
[1740427118958,0.75727,2641.0,2640.9,0.7573]
[1740427119260,1.12407999,2641.1,2640.7,3.377]
[1740427121747,1.50317999,2641.1,2640.4,5.4197]
[1740427122052,3.2078,2640.6,2640.1,24.2108]
[1740427122253,0.75761,2639.8,2639.5,2.229]
[1740427122453,0.7576,2639.9,2639.5,5.4368]
[1740427122647,0.75758,2640.0,2639.8,0.75761]
[1740427122847,1.0789,2640.2,2639.5,8.8138]
[1740427123252,2.97267,2640.2,2639.6,4.13364]
[1740427123446,0.75755,2640.1,2639.9,0.75758]
[1740427123646,0.75756,2640.0,2639.6,3.376]
[1740427123865,0.75756,2640.0,2639.8,0.75759]
[1740427124062,1.0789,2640.2,2639.8,3.2078]
[1740427124355,0.75758,2639.9,2639.8,3.2078]
[1740427125357,0.75758,2640.0,2639.8,3.2078]
[1740427125562,0.75758,2639.9,2639.8,3.2078]
[1740427126456,0.75758,2640.0,2639.8,3.2078]
[1740427126656,0.75755,2640.1,2639.9,0.75758]
[1740427126862,0.75758,2639.9,2639.8,3.2078]
[1740427127857,0.75755,2640.1,2639.9,0.75758]
[1740427128056,0.75758,2639.9,2639.8,3.2078]
[1740427129461,0.75768,2639.6,2639.4,3.97119999]
[1740427129652,3.2078,2640.0,2639.6,0.75766]
[1740427129860,0.00567999,2639.8,2639.5,4.13368]
[1740427130054,0.00567999,2639.8,2639.5,3.376]
[1740427130961,0.00567999,2639.8,2639.4,3.21347999]
[1740427131158,0.00567999,2639.8,2639.4,0.00567999]
[1740427131364,3.2078,2639.7,2639.4,0.00567999]
[1740427131765,4.2549,2639.7,2639.4,0.00567999]
[1740427131963,4.634,2639.7,2639.4,0.00567999]
[1740427132163,4.2549,2639.7,2639.4,0.00567999]
[1740427134366,0.00567999,2639.8,2639.4,0.00567999]
[1740427134666,0.00567999,2639.8,2639.5,3.376]
[1740427135561,0.00567999,2639.8,2639.5,6.5838]
[1740427136165,3.2078,2640.8,2639.7,0.75764]
[1740427136360,3.2078,2640.8,2639.9,5.10175]
[1740427136561,0.75743,2640.5,2640.3,0.75746]
[1740427136763,0.75741,2640.5,2640.4,3.376]
[1740427137367,0.75749,2640.3,2640.1,0.75752]
[1740427137557,1.0964,2640.6,2640.2,4.13347]
[1740427137761,0.75743,2640.5,2640.3,0.75745]
[1740427138261,1.0964,2640.6,2640.2,3.376]
[1740427138459,1.0964,2640.6,2640.3,0.75747]
[1740427138763,0.75746,2640.4,2640.2,4.1335]
[1740427138958,1.0964,2640.6,2640.2,3.376]
[1740427139467,0.75744,2640.5,2640.3,0.75747]
[1740427139765,0.75744,2640.5,2640.2,3.376]
[1740427139766,0.75747,2640.4,2640.2,4.13348]
[1740427140161,0.75747,2640.4,2640.3,3.375]
[1740427140460,1.0964,2640.6,2640.3,3.375]
[1740427140767,1.0964,2640.6,2640.0,1.0473]
[1740427141063,0.75756,2640.0,2639.9,3.2078]
[1740427141364,6.16854,2640.5,2639.9,6.5828]
[1740427141668,0.75756,2640.0,2639.9,3.2078]
[1740427141866,0.75756,2640.0,2639.9,6.5828]
[1740427142059,0.75756,2640.0,2639.9,3.2078]
[1740427142259,0.75764,2639.7,2639.6,3.2078]
[1740427142460,0.75765,2639.7,2639.6,0.75766]
[1740427142960,1.8863,2639.9,2639.7,0.75762]
[1740427143161,4.3365,2639.9,2639.5,3.375]
[1740427143361,0.75767,2639.6,2639.5,3.375]
[1740427143755,4.3365,2639.9,2639.5,3.375]
[1740427143959,0.75767,2639.6,2639.5,3.375]
[1740427144164,0.75766,2639.7,2639.5,4.13269]
[1740427144366,4.3365,2639.9,2639.5,3.375]
[1740427144667,0.75756,2640.0,2639.8,0.7576]
[1740427145167,1.1014,2640.2,2639.6,3.2078]
[1740427145361,0.75764,2639.7,2639.6,3.2078]
[1740427146258,0.7577,2639.5,2639.4,0.00567999]
[1740427146567,0.7577,2639.5,2639.4,3.38067999]
[1740427147160,0.7577,2639.5,2639.4,0.00567999]
[1740427147669,0.75786,2639.0,2638.7,3.375]
[1740427147963,3.31889,2639.5,2638.7,6.5828]
[1740427147964,0.75782,2639.1,2638.7,6.5828]
[1740427148266,0.75785,2639.0,2638.9,0.75786]
[1740427148666,0.75785,2639.0,2638.8,0.75788]
[1740427149261,0.75783,2639.1,2638.9,0.75786]
[1740427149472,0.00567999,2639.2,2638.7,6.58847999]
[1740427149663,0.75783,2639.1,2638.7,6.58847999]
[1740427149969,0.75783,2639.1,2638.9,0.75785]
[1740427150269,0.00567999,2639.2,2639.1,0.75781]
[1740427150468,0.76346999,2639.2,2639.1,0.75781]
[1740427150774,0.00567999,2639.2,2639.1,0.75781]
[1740427150965,0.75782,2639.1,2638.7,6.58847999]
[1740427151271,0.00567999,2639.2,2638.7,6.58847999]
[1740427152468,0.00567999,2639.2,2638.8,3.375]
[1740427154669,3.21347999,2639.2,2638.8,3.374]
[1740427156282,3.21347999,2639.2,2638.7,3.21347999]
[1740427156579,0.00567999,2639.2,2638.7,6.58747999]
[1740427157670,0.00567999,2639.2,2639.1,3.2078]
[1740427157872,0.00567999,2639.2,2639.1,6.5818]
[1740427158175,16.07848919,2639.8,2639.2,1.89447]
[1740427158382,16.07848919,2639.8,2639.7,0.75764]
[1740427158573,16.07848919,2639.8,2639.7,4.13164]
[1740427159070,16.07848919,2639.8,2639.7,10.13164]
[1740427159274,12.6705092,2639.8,2639.7,10.13164]
[1740427159476,5.52283443,2639.8,2639.7,10.13164]
[1740427159672,0.07219478,2639.8,2639.7,10.13164]
[1740427160564,0.00567999,2640.0,2639.7,3.373]
[1740427160769,0.76324999,2640.0,2639.9,3.2078]
[1740427161166,0.00567999,2640.0,2639.9,3.96538]
[1740427161369,0.75736,2640.7,2640.5,0.75739]
[1740427161574,1.0678,2640.8,2640.6,3.373]
[1740427161777,0.7573,2640.9,2640.7,0.75735]
[1740427162075,1.0744,2641.0,2640.6,6.5808]
[1740427162280,1.0678,2641.5,2640.9,3.2078]
[1740427162483,3.2078,2641.9,2641.0,3.373]
[1740427162677,0.76281999,2641.5,2641.0,3.373]
[1740427162873,0.00567999,2641.5,2641.2,3.96499]
[1740427163171,0.00567999,2641.5,2641.2,3.2078]
[1740427163376,0.00567999,2641.5,2641.4,0.75715]
[1740427163580,0.00567999,2641.5,2641.4,3.373]
[1740427163772,0.00567999,2641.5,2641.4,4.13015]
[1740427164081,0.00567999,2641.5,2641.4,3.373]
[1740427165472,0.00567999,2641.5,2641.4,4.13015]
[1740427165679,0.00567999,2641.5,2641.4,3.373]
[1740427166580,0.76280999,2641.5,2641.4,3.373]
[1740427167479,0.00567999,2641.5,2641.4,3.373]
[1740427167869,0.76280999,2641.5,2641.4,3.373]
[1740427168275,0.00567999,2641.5,2641.2,3.2078]
[1740427168475,0.75718,2641.3,2641.2,3.2078]
[1740427168781,0.75718,2641.3,2641.2,6.5788]
[1740427168982,0.75718,2641.3,2641.2,3.371]
[1740427169572,0.75727,2641.0,2640.9,21.01767999]
[1740427169777,3.96507,2641.0,2640.9,0.00567999]
[1740427169978,0.75738,2640.6,2640.5,3.371]
[1740427172089,0.75744,2640.4,2640.3,3.37667999]
[1740427173377,1.0645,2640.7,2640.3,3.37667999]
[1740427173684,0.75743,2640.5,2640.3,4.13413999]
[1740427174587,1.0645,2640.7,2640.3,3.37667999]
[1740427174785,0.75742,2640.5,2640.3,4.13413999]
[1740427174979,0.75744,2640.4,2640.3,3.37667999]
[1740427175983,1.82186,2640.7,2640.5,0.7574]
[1740427176283,0.75738,2640.6,2640.5,3.2078]
[1740427177292,1.0645,2640.7,2640.5,3.2078]
[1740427177481,1.0645,2640.7,2640.3,3.37667999]
[1740427181294,1.0645,2640.7,2640.3,0.00567999]
[1740427181484,1.0645,2640.7,2640.4,3.37]
[1740427182386,3.2078,2640.6,2640.3,0.00567999]
[1740427182686,1.1298,2640.5,2640.3,0.00567999]
[1740427183386,1.0645,2640.7,2640.3,0.00567999]
[1740427184388,1.0645,2640.7,2640.4,3.369]
[1740427190193,1.0645,2640.7,2640.3,0.00567999]
[1740427190394,1.0645,2640.7,2640.4,3.368]
[1740427192295,0.00567999,2641.5,2640.4,3.368]
[1740427192296,3.21347999,2641.5,2640.6,3.2078]
[1740427192498,1.06047999,2641.5,2641.1,3.2078]
[1740427192797,1.06047999,2641.5,2641.4,3.2078]
[1740427193093,1.06047999,2641.5,2641.4,3.368]
[1740427193293,0.00567999,2641.5,2641.4,4.12515]
[1740427193597,3.2078,2642.3,2641.4,4.12515]
[1740427193598,1.0591,2642.2,2641.4,3.67170109]
[1740427193792,0.75701,2641.9,2641.6,0.7571]
[1740427193994,0.75699,2642.0,2641.5,3.2078]
[1740427194200,0.75699,2642.0,2641.7,0.75705]
[1740427194392,0.75701,2641.9,2641.8,3.368]
[1740427196393,0.757,2642.0,2641.8,3.368]
[1740427196590,0.00567999,2642.1,2641.6,0.00567999]
[1740427196798,3.96487,2641.7,2641.6,0.00567999]
[1740427196993,0.00567999,2642.1,2641.6,6.58047999]
[1740427197292,0.00567999,2642.1,2642.0,0.75698]